bitfinex/quotes_ETHUSD_20250623
["timestamp","ask_amount","ask_price","bid_price","bid_amount"]
[1750721194151,1.326685,2422.8,2421.7,0.55]
[1750721194152,10.0,2422.7,2421.7,0.55]
[1750721194933,2.171,2422.9,2421.7,0.55]
[1750721195139,10.0,2422.9,2421.7,0.55]
[1750721196013,10.0,2422.9,2421.9,0.55]
[1750721196334,12.112685,2422.9,2422.1,0.55]
[1750721196517,12.112685,2422.9,2422.2,1.6408]
[1750721197930,2.112685,2422.9,2422.2,1.6408]
[1750721198929,10.0,2422.7,2422.2,1.6408]
[1750721199629,12.112685,2422.9,2422.2,1.6408]
[1750721199929,11.3208535,2422.8,2422.2,1.6408]
[1750721200133,1.3208535,2422.8,2422.2,1.6408]
[1750721200436,11.3208535,2422.8,2422.2,1.6408]
[1750721200602,1.3208535,2422.8,2422.2,1.6408]
[1750721201123,10.0,2422.8,2422.2,1.6408]
[1750721202024,12.172,2423.0,2422.2,1.6408]
[1750721202895,10.0,2422.9,2422.2,1.6408]
[1750721203435,12.172,2423.0,2422.2,1.6408]
[1750721203931,10.0,2422.8,2422.2,1.6408]
[1750721204235,10.0,2422.6,2422.2,1.6408]
[1750721204430,2.172,2423.0,2422.2,1.6408]
[1750721204431,10.0,2422.8,2422.2,1.6408]
[1750721204639,10.0,2422.7,2422.2,1.6408]
[1750721204821,16.29914197,2423.0,2422.2,1.6408]
[1750721205028,10.0,2422.7,2422.2,1.6408]
[1750721205226,10.0,2422.5,2422.2,1.6408]
[1750721205706,10.0,2422.7,2422.2,1.6408]
[1750721205902,10.0,2422.5,2422.2,1.6408]
[1750721206107,10.0,2422.7,2422.2,1.6408]
[1750721206308,1.603,2422.9,2422.2,1.6408]
[1750721206509,10.0,2422.6,2422.2,1.6408]
[1750721206736,11.3775,2422.8,2422.2,1.6408]
[1750721206935,10.0,2422.6,2422.2,1.6408]
[1750721207238,10.0,2422.4,2421.4,0.55]
[1750721207442,2.172,2422.4,2421.4,0.55]
[1750721207746,0.2172,2422.3,2421.4,0.8222]
[1750721207914,2.172,2422.4,2421.4,0.8222]
[1750721208852,10.0,2422.5,2421.4,0.8222]
[1750721209007,2.155,2422.6,2421.4,0.8222]
[1750721210345,2.155,2422.6,2421.8,1.5786]
[1750721210554,11.3775,2422.8,2421.9,0.55]
[1750721210709,13.45405,2422.7,2422.0,1.5786]
[1750721211043,10.0,2423.0,2422.2,1.5786]
[1750721211361,12.156,2423.0,2422.2,1.5786]
[1750721211922,10.0,2422.8,2422.2,1.5786]
[1750721212830,30.0,2422.9,2422.2,1.5786]
[1750721213030,4.19489481,2422.9,2422.2,1.5786]
[1750721213350,30.0,2422.9,2422.2,1.5786]
[1750721213555,10.0,2423.0,2422.2,1.5786]
[1750721213919,10.0,2422.8,2422.2,1.5786]
[1750721214349,30.0,2422.9,2422.2,1.5786]
[1750721214557,10.0,2423.0,2422.2,1.5786]
[1750721214758,2.0016,2422.9,2422.2,1.5786]
[1750721215643,22.156,2423.4,2422.4,1.6576]
[1750721215856,10.0,2423.2,2422.4,1.6576]
[1750721216148,2.156,2423.4,2422.4,1.6576]
[1750721216341,32.155,2423.4,2422.6,1.6576]
[1750721216661,2.57063559,2423.5,2422.8,1.6576]
[1750721216829,10.0,2423.4,2422.8,1.6576]
[1750721217034,30.0,2423.5,2422.6,0.55]
[1750721217355,2.155,2423.6,2422.9,1.6576]
[1750721217578,30.0,2423.7,2423.1,1.6576]
[1750721218097,2.155,2423.8,2423.1,1.6576]
[1750721218217,0.2295,2423.7,2423.1,1.6576]
[1750721218960,10.0,2423.8,2423.1,1.6576]
[1750721219164,30.0,2423.8,2423.1,1.6576]
[1750721219374,10.0,2423.7,2423.1,1.6576]
[1750721219661,10.14,2423.9,2423.1,1.6576]
[1750721219860,10.0,2423.7,2423.0,0.55]
[1750721220154,10.14,2423.9,2423.3,1.5291]
[1750721220356,10.0,2423.7,2423.3,1.5291]
[1750721220930,10.14,2423.9,2423.3,1.5291]
[1750721220931,0.14,2423.9,2423.3,1.5291]
[1750721221131,0.54502059,2423.9,2423.4,0.55]
[1750721221327,0.54502059,2423.9,2423.5,1.578]
[1750721221565,0.54502059,2423.9,2423.6,0.55]
[1750721221768,0.54502059,2423.9,2423.7,1.578]
[1750721221970,0.54502059,2423.9,2423.8,2.1981]
[1750721222528,0.54502059,2423.9,2423.8,1.6481]
[1750721222732,0.54502059,2423.9,2423.0,2.155]
[1750721222934,0.54502059,2423.9,2423.1,0.2155]
[1750721223141,0.54502059,2423.9,2423.2,0.55]
[1750721224672,0.54502059,2423.9,2423.2,4.67665893]
[1750721224873,0.54502059,2423.9,2423.2,0.55]
[1750721225660,0.54502059,2423.9,2423.3,1.6481]
[1750721225860,0.54502059,2423.9,2423.7,0.55]
[1750721226075,0.54502059,2423.9,2423.8,2.1981]
[1750721226383,0.14,2423.9,2423.8,2.1981]
[1750721227085,0.14,2423.9,2423.8,2.1935]
[1750721229665,0.4104741,2424.6,2424.2,1.5739]
[1750721229868,0.4104741,2424.6,2423.8,0.55]
[1750721229869,0.14,2424.9,2424.4,1.5739]
[1750721230168,0.14,2424.9,2424.6,1.5739]
[1750721230367,0.14,2424.9,2424.5,0.55]
[1750721230368,0.14,2424.9,2424.8,2.1239]
[1750721234224,0.14,2424.9,2424.8,1.5739]
[1750721234389,0.14,2424.9,2424.5,1.5711]
[1750721235335,0.14,2424.9,2424.6,0.55]
[1750721236901,0.14,2424.9,2424.5,2.52231]
[1750721236902,0.14,2424.9,2424.5,1.5711]
[1750721237606,0.14,2424.9,2424.6,0.55]
[1750721238856,0.14,2424.9,2424.7,0.55]
[1750721239159,0.14,2424.9,2424.6,1.6048]
[1750721239160,0.14,2424.9,2424.8,2.1548]
[1750721239322,0.14,2424.9,2424.8,2.78271169]
[1750721239700,0.14,2424.9,2424.8,6.90676315]
[1750721239932,0.14,2425.9,2425.5,0.55]
[1750721241257,0.54528207,2425.9,2425.5,0.55]
[1750721241740,0.14,2425.9,2425.5,0.55]
[1750721241948,0.14,2425.9,2425.7,0.55]
[1750721242324,0.14,2425.9,2425.8,2.0645]
[1750721243637,0.14,2425.9,2425.8,6.18685138]
[1750721244314,0.14,2425.9,2425.8,2.0645]
[1750721244930,0.14,2425.9,2425.8,11.5765]
[1750721245134,0.14,2425.9,2425.8,10.694548]
[1750721245331,0.14,2425.9,2425.8,10.144548]
[1750721246153,0.14,2425.9,2425.8,10.694548]
[1750721247330,0.14,2425.9,2425.8,3.317548]
[1750721247557,0.14,2425.9,2425.8,9.4385]
[1750721250576,0.14,2425.9,2425.8,13.56085138]
[1750721250745,0.14,2425.9,2425.8,9.4385]
[1750721250949,0.14,2425.9,2425.8,13.56085138]
[1750721251265,1.621,2425.8,2424.3,1.5875]
[1750721251449,1.621,2425.8,2423.2,4.12676414]
[1750721251450,1.621,2425.3,2423.7,5.7133179]
[1750721251629,0.2171,2425.2,2423.8,0.57133179]
[1750721251954,0.2171,2425.2,2424.0,1.5875]
[1750721251955,11.86428886,2425.2,2424.0,1.5875]
[1750721252269,12.27062551,2425.2,2424.1,0.55]
[1750721252464,12.05352551,2425.2,2424.1,0.55]
[1750721252671,10.40633665,2425.2,2424.0,1.5875]
[1750721253132,10.40633665,2425.2,2424.1,9.5]
[1750721253327,10.40633665,2425.2,2424.2,1.5193]
[1750721253533,10.40633665,2425.2,2424.3,1.10193]
[1750721253950,10.40633665,2425.2,2424.4,0.55]
[1750721254435,0.40633665,2425.2,2424.6,0.55]
[1750721254755,1.6605,2425.6,2424.8,0.55]
[1750721254954,1.6605,2425.6,2424.9,7.366]
[1750721255155,2.29433073,2425.6,2424.6,0.55]
[1750721255470,10.0,2425.2,2424.3,2.132]
[1750721255668,30.0,2425.3,2424.5,7.366]
[1750721255833,1.5724,2425.1,2424.5,7.366]
[1750721256358,10.0,2425.0,2424.6,7.365]
[1750721256672,2.15724,2424.9,2424.5,7.365]
[1750721256871,1.5724,2425.1,2424.5,7.365]
[1750721257056,1.5724,2425.1,2424.1,0.55]
[1750721257057,1.5724,2425.1,2423.9,0.55]
[1750721257371,10.0,2425.0,2424.0,9.497]
[1750721257586,1.5724,2425.1,2424.0,9.497]
[1750721257873,1.5724,2425.1,2424.2,0.55]
[1750721258070,10.0,2425.0,2424.2,1.5546]
[1750721258447,1.5724,2425.1,2424.3,1.2542]
[1750721259050,1.1562,2425.4,2424.4,0.55]
[1750721259373,11.1562,2425.4,2424.4,0.55]
[1750721260042,1.1562,2425.4,2424.4,0.55]
[1750721262055,0.40800653,2425.6,2424.6,0.55]
[1750721262255,1.1995,2425.7,2424.7,2.133]
[1750721262557,1.1995,2425.7,2424.9,0.55]
[1750721264668,1.60635958,2425.7,2424.9,0.55]
[1750721268265,1.60635958,2425.7,2425.0,7.357]
[1750721268470,1.60635958,2425.7,2425.1,7.357]
[1750721269425,1.60635958,2425.7,2425.2,0.55]
[1750721269426,0.40685958,2425.7,2425.2,0.55]
[1750721269710,0.14,2425.9,2425.4,0.55]
[1750721269917,0.55842126,2425.9,2425.4,0.55]
[1750721270062,0.55842126,2425.9,2425.6,0.55]
[1750721270264,0.55842126,2425.9,2425.6,2.666]
[1750721271070,0.55842126,2425.9,2425.6,3.05991]
[1750721271266,0.14,2425.9,2425.8,0.55]
[1750721271470,0.14,2425.9,2425.8,7.905]
[1750721279884,0.14,2425.9,2425.8,10.01]
[1750721280994,0.14,2425.9,2425.8,0.55]
[1750721281196,0.14,2425.9,2425.3,1.2231]
[1750721281402,0.14,2425.9,2424.9,1.2569]
[1750721281605,0.14,2425.9,2425.0,9.99708793]
[1750721281804,0.14,2425.9,2425.1,4.67343289]
[1750721282114,0.14,2425.9,2425.1,0.55]
[1750721282300,0.14,2425.9,2425.3,0.55]
[1750721283795,0.14,2425.9,2425.4,9.457]
[1750721284323,0.14,2425.9,2425.3,0.55]
[1750721284549,0.14,2425.9,2425.4,9.456]
[1750721284751,0.14,2425.9,2425.6,0.55]
[1750721286306,0.14,2425.9,2425.4,9.456]
[1750721286509,1.2199,2425.8,2425.4,9.456]
[1750721286823,1.2199,2425.8,2425.5,7.339]
[1750721287023,0.14,2425.9,2425.5,7.339]
[1750721287229,0.14,2425.9,2425.6,0.55]
[1750721287438,0.14,2425.9,2425.5,7.339]
[1750721287621,0.14,2425.9,2425.6,0.55]
[1750721288543,0.14,2425.9,2425.7,9.453]
[1750721288740,0.14,2425.9,2425.8,7.338]
[1750721290253,0.14,2425.9,2425.8,8.8333]
[1750721291171,1.3421,2425.9,2425.8,7.338]
[1750721291330,1.3421,2425.9,2425.4,7.335]
[1750721292022,1.3421,2425.9,2425.5,0.55]
[1750721293155,1.3421,2425.9,2425.0,1.79968793]
[1750721293380,1.3421,2425.9,2425.3,2.115]
[1750721294123,1.57641989,2425.9,2425.4,7.332]
[1750721295539,1.57641989,2425.9,2425.4,7.331]
[1750721296280,2.1741619,2425.9,2425.4,7.329]
[1750721297489,0.9720619,2425.9,2423.6,12.27971921]
[1750721297643,0.9720619,2425.9,2422.1,3.42708491]
[1750721297644,0.9720619,2425.9,2423.4,12.024]
[1750721297645,1.2883,2425.3,2423.4,12.024]
[1750721297843,11.2883,2424.8,2423.4,2.115]
[1750721298154,10.0,2424.2,2423.1,0.14]
[1750721298356,1.2883,2424.0,2423.1,7.468]
[1750721298561,11.69730891,2424.0,2423.1,7.468]
[1750721298745,11.69730891,2424.0,2423.1,0.14]
[1750721298945,12.29505092,2424.0,2423.2,7.327]
[1750721299147,13.62455601,2424.0,2423.2,8.2835]
[1750721299400,13.62455601,2424.0,2423.3,0.55]
[1750721300986,13.83116106,2424.0,2423.3,0.55]
[1750721301184,10.0,2423.8,2423.3,7.326]
[1750721301582,10.41326122,2423.9,2423.3,7.326]
[1750721301953,10.41326122,2423.9,2423.4,0.55]
[1750721303246,0.41326122,2423.9,2423.4,0.55]
[1750721303698,0.41326122,2423.9,2423.3,0.9565]
[1750721303996,0.41326122,2423.9,2423.4,9.424]
[1750721306396,0.41326122,2423.9,2423.7,0.55]
[1750721306753,0.41326122,2423.9,2423.6,1.2576]
[1750721307704,0.41326122,2423.9,2423.5,0.55]
[1750721308280,0.41326122,2423.9,2423.6,9.423]
[1750721308698,0.41326122,2423.9,2423.4,0.55]
[1750721308895,0.41326122,2423.9,2423.7,7.323]
[1750721310411,0.41326122,2423.9,2423.7,8.2652]
[1750721310820,0.41326122,2423.9,2423.8,1.739]
[1750721311169,1.88174201,2424.9,2423.8,1.739]
[1750721311518,1.88174201,2424.9,2423.8,5.86467309]
[1750721311727,1.284,2424.9,2423.8,5.86467309]
[1750721311868,1.284,2424.9,2423.9,1.41298731]
[1750721312070,0.42222974,2424.9,2424.0,1.739]
[1750721312302,1.284,2425.2,2424.3,1.189]
[1750721312517,1.284,2425.2,2424.5,0.55]
[1750721313983,1.48618545,2425.2,2424.5,0.55]
[1750721314178,1.48618545,2425.2,2424.6,0.787]
[1750721314510,1.79114201,2425.5,2424.7,0.55]
[1750721314707,1.79114201,2425.5,2424.7,2.65]
[1750721314878,2.20456546,2425.5,2424.7,2.65]
[1750721315072,2.20456546,2425.5,2424.8,1.1761]
[1750721315274,2.20456546,2425.5,2424.9,0.55]
[1750721315478,2.20456546,2425.5,2425.0,7.317]
[1750721315913,1.01116546,2425.5,2425.1,0.55]
[1750721316215,0.31077193,2425.8,2425.3,4.67312016]
[1750721316416,0.31077193,2425.8,2425.5,4.6727711]
[1750721316577,0.31077193,2425.8,2425.7,1.7261]
[1750721316778,0.31077193,2425.8,2425.7,5.84862133]
[1750721317180,0.59774201,2426.8,2426.1,0.55]
[1750721317375,0.59774201,2426.8,2426.3,0.55]
[1750721317780,0.80218741,2426.8,2426.3,0.55]
[1750721317991,0.80218741,2426.8,2426.3,1.5464]
[1750721319497,1.21342234,2426.8,2426.3,1.5464]
[1750721319718,1.00897694,2426.8,2426.4,1.0706]
[1750721319923,0.09,2426.9,2426.4,1.0706]
[1750721320244,0.09,2426.9,2426.5,0.55]
[1750721320440,0.09,2426.9,2426.5,0.8667]
[1750721321372,0.09,2426.9,2426.5,0.3167]
[1750721321512,0.09,2426.9,2426.4,1.0706]
[1750721323241,0.50097754,2426.9,2426.4,1.0706]
[1750721323437,0.09,2426.9,2426.4,1.0706]
[1750721324272,0.68774201,2426.9,2426.4,1.0706]
[1750721325242,0.59774201,2426.8,2426.5,7.304]
[1750721326054,0.59774201,2426.8,2426.6,0.55]
[1750721326253,0.50283437,2426.9,2426.6,0.55]
[1750721326434,0.09,2426.9,2426.6,0.55]
[1750721327160,0.09,2426.9,2426.0,9.908]
[1750721327161,0.09,2426.9,2425.6,7.97717711]
[1750721327162,10.0,2426.6,2425.6,7.97717711]
[1750721327365,40.0,2426.2,2425.6,7.3]
[1750721327527,0.59774201,2426.1,2425.6,7.3]
[1750721328461,1.00692669,2426.1,2425.2,1.046]
[1750721328690,1.0509,2425.8,2425.1,2.081]
[1750721328855,10.0,2425.4,2424.9,1.0556]
[1750721329060,30.59774201,2425.3,2424.8,7.299]
[1750721329269,0.59774201,2425.3,2424.8,7.299]
[1750721334674,0.59774201,2425.3,2425.1,0.55]
[1750721334878,1.45418468,2426.1,2425.1,0.55]
[1750721335190,10.0,2425.7,2425.1,2.632]
[1750721335389,14.19489481,2425.7,2425.2,7.295]
[1750721335587,0.55953323,2426.0,2425.2,7.295]
[1750721335588,10.0,2425.8,2425.2,7.295]
[1750721335910,0.55953323,2426.0,2425.2,7.295]
[1750721336118,10.0,2425.8,2425.2,7.295]
[1750721336520,30.0,2425.9,2425.2,7.295]
[1750721336677,0.55953323,2426.0,2425.2,7.295]
[1750721337227,1.71998655,2426.0,2425.2,7.295]
[1750721337519,11.71998655,2426.0,2425.3,0.55]
[1750721337675,10.0,2426.0,2425.3,0.55]
[1750721337870,0.41406216,2426.1,2425.5,0.55]
[1750721338091,11.61563323,2426.4,2425.5,0.55]
[1750721338307,10.0,2426.3,2425.5,0.55]
[1750721338469,0.40939679,2426.3,2425.5,0.55]
[1750721338671,1.61563323,2426.4,2425.5,0.55]
[1750721340711,0.55953323,2426.4,2425.7,0.55]
[1750721340902,0.55953323,2426.4,2425.8,7.291]
[1750721341873,0.96561788,2426.4,2425.8,7.291]
[1750721342914,2.06217967,2426.4,2425.7,7.288]
[1750721343112,0.96561788,2426.4,2425.7,7.288]
[1750721344429,0.96561788,2426.4,2425.8,0.55]
[1750721344629,0.96561788,2426.4,2425.6,1.0167]
[1750721344823,0.96561788,2426.4,2425.6,8.3027]
[1750721345631,0.96561788,2426.4,2425.7,0.55]
[1750721345808,2.06217967,2426.4,2425.7,0.55]
[1750721346621,0.96561788,2426.4,2425.7,0.55]
[1750721355735,0.40608465,2426.4,2425.8,1.0663]
[1750721355935,0.55953323,2426.7,2425.9,0.55]
[1750721356141,30.55953323,2426.6,2425.8,1.0663]
[1750721356352,0.55953323,2426.6,2425.8,1.0663]
[1750721356552,10.0,2426.4,2425.8,1.0663]
[1750721356728,10.0,2426.2,2425.8,1.0663]
[1750721356930,10.0,2426.2,2424.7,1.0663]
[1750721357123,2.03240239,2426.4,2425.0,1.0663]
[1750721357124,0.55953323,2426.1,2425.0,1.0663]
[1750721357332,0.55953323,2426.1,2425.1,0.55]
[1750721357530,0.55953323,2426.1,2425.0,1.0663]
[1750721357726,0.55953323,2426.1,2425.2,1.0891]
[1750721358157,0.55953323,2426.1,2425.3,0.55]
[1750721358342,0.55953323,2426.1,2425.4,7.273]
[1750721358539,0.55953323,2426.1,2425.2,1.0891]
[1750721358747,0.55953323,2426.1,2425.3,7.272]
[1750721359068,0.55953323,2426.1,2425.6,0.55]
[1750721359371,0.41956916,2426.4,2425.7,0.55]
[1750721359545,10.0,2426.2,2425.7,0.55]
[1750721359745,0.55953323,2426.2,2425.7,0.55]
[1750721360068,10.55953323,2426.2,2425.6,1.0769]
[1750721360270,0.55953323,2426.2,2425.6,1.50504359]
[1750721360441,10.55953323,2426.2,2425.6,1.50504359]
[1750721360641,0.55953323,2426.2,2425.6,1.50504359]
[1750721366258,0.55953323,2426.2,2425.7,0.55]
[1750721367957,10.55953323,2426.2,2425.6,1.0769]
[1750721368289,2.65712295,2426.2,2425.6,1.0769]
[1750721368582,11.61153323,2426.1,2425.6,8.3399]
[1750721368789,1.61153323,2426.1,2425.6,8.3399]
[1750721369908,1.61153323,2426.1,2425.6,1.0769]
[1750721370607,10.0,2425.9,2425.4,8.2856]
[1750721370787,10.55953323,2425.9,2425.4,8.2856]
[1750721370959,10.55953323,2425.9,2425.4,1.0246]
[1750721370960,0.55953323,2425.9,2425.4,1.0246]
[1750721371170,0.55953323,2425.9,2425.4,2.05956]
[1750721372096,11.51086399,2426.4,2425.4,2.05956]
[1750721372365,0.55953323,2426.2,2425.4,2.05956]
[1750721374010,0.55953323,2426.2,2425.4,1.0246]
[1750721374390,10.0,2426.0,2425.4,1.0246]
[1750721374711,10.55953323,2426.2,2425.4,1.0246]
[1750721374909,10.0,2426.0,2425.4,1.0246]
[1750721375113,30.0,2425.7,2424.2,4.12499493]
[1750721375296,10.0,2425.4,2424.4,1.0018]
[1750721375501,10.55953323,2425.4,2424.6,1.0018]
[1750721375815,0.55953323,2425.4,2424.7,0.55]
[1750721375974,0.55953323,2425.4,2424.7,1.43078]
[1750721376178,0.55953323,2425.4,2424.8,1.0362]
[1750721379096,0.55953323,2425.4,2424.9,7.254]
[1750721384558,10.0,2425.7,2424.9,7.254]
[1750721384858,0.55953323,2425.7,2424.9,7.254]
[1750721385022,0.55953323,2425.7,2424.9,8.171098]
[1750721385220,0.55953323,2425.7,2425.0,0.55]
[1750721385460,11.0385,2426.1,2425.2,0.55]
[1750721385666,30.55953323,2425.8,2425.1,1.0385]
[1750721385838,0.55953323,2425.8,2425.1,1.0385]
[1750721386036,10.0,2425.7,2425.1,1.0385]
[1750721386238,0.55953323,2425.8,2425.1,1.0385]
[1750721389125,0.55953323,2425.8,2425.2,0.55]
[1750721390577,1.0385,2426.1,2425.1,0.55]
[1750721390764,30.0,2426.3,2425.3,0.55]
[1750721390952,30.0,2426.2,2425.3,0.55]
[1750721391279,30.0,2426.3,2425.3,0.55]
[1750721391444,10.0,2426.2,2425.3,0.55]
[1750721391645,10.0,2426.1,2425.1,1.5915]
[1750721391846,10.0,2426.1,2425.4,1.0792]
[1750721392077,10.0,2426.3,2425.4,1.0792]
[1750721392284,5.2705636,2426.4,2425.4,1.0792]
[1750721392442,10.49496657,2426.3,2425.4,1.0792]
[1750721392990,10.49496657,2426.3,2425.5,0.55]
[1750721394397,10.49496657,2426.3,2425.4,1.0792]
[1750721394398,30.0,2426.0,2425.4,1.0792]
[1750721394552,10.0,2425.7,2425.4,1.0792]
[1750721394755,10.57145917,2425.7,2425.4,1.0792]
[1750721394943,0.57145917,2425.7,2425.4,1.0792]
[1750721395457,1.10664257,2425.7,2425.4,1.0792]
[1750721395687,10.0,2425.7,2425.4,1.0792]
[1750721395849,0.49496657,2425.9,2425.4,1.0792]
[1750721398445,10.0,2425.7,2425.4,1.0792]
[1750721398780,0.49496657,2425.7,2424.9,7.233]
[1750721398982,10.0,2425.5,2424.9,7.233]
[1750721399189,10.0,2425.5,2424.9,8.1609]
[1750721399412,30.0,2425.6,2424.9,8.1609]
[1750721399716,10.0,2425.5,2424.9,8.1609]
[1750721399998,0.49496657,2425.7,2424.9,8.1609]
[1750721400203,0.49496657,2425.7,2425.0,1.02069]
[1750721400767,10.0,2425.5,2425.0,1.02069]
[1750721401488,0.49496657,2425.7,2425.0,1.02069]
[1750721401714,0.49496657,2425.7,2424.9,7.233]
[1750721401862,10.0,2425.5,2424.9,7.233]
[1750721402307,10.0,2425.5,2424.8,2.046]
[1750721402609,11.06642574,2425.7,2424.8,2.046]
[1750721402810,10.0,2425.3,2424.0,3.44387168]
[1750721402977,10.0,2425.0,2424.1,0.49838717]
[1750721403161,0.49496657,2425.0,2424.1,0.14]
[1750721403774,0.49496657,2425.0,2424.2,0.55]
[1750721403976,2.046,2425.4,2424.2,0.55]
[1750721404182,10.49496657,2425.3,2424.2,0.55]
[1750721405213,10.0,2425.1,2424.2,0.55]
[1750721405370,0.49496657,2425.3,2424.2,0.55]
[1750721405574,11.74906323,2425.3,2424.2,2.596]
[1750721405784,0.49496657,2425.3,2424.2,2.596]
[1750721406171,10.0,2425.1,2424.2,2.046]
[1750721406395,10.0,2424.9,2424.2,2.046]
[1750721407107,30.0,2425.0,2424.2,2.046]
[1750721407415,0.49496657,2425.1,2424.2,2.046]
[1750721407705,10.0,2424.9,2424.2,3.0422]
[1750721407907,0.91545207,2425.1,2424.2,3.0422]
[1750721408108,10.91545207,2425.1,2424.2,2.046]
[1750721408402,0.49496657,2425.0,2424.2,2.046]
[1750721408800,0.49496657,2425.0,2424.1,0.14]
[1750721409009,10.0,2424.7,2424.1,0.14]
[1750721409173,0.49496657,2424.7,2424.1,0.14]
[1750721409369,10.0,2424.4,2424.1,0.14]
[1750721410404,30.0,2424.5,2424.1,0.14]
[1750721410605,10.0,2424.4,2424.1,0.14]
[1750721410793,1.04949666,2424.6,2424.1,0.14]
[1750721411487,10.49496657,2424.7,2424.1,0.14]
[1750721411806,10.0,2424.5,2424.1,0.14]
[1750721412665,20.49496657,2424.7,2424.1,0.14]
[1750721412904,10.0,2424.6,2424.1,0.14]
[1750721413106,0.4132907,2425.1,2424.2,0.55]
[1750721413272,40.0,2425.0,2424.2,0.55]
[1750721413608,10.0,2424.8,2424.2,0.55]
[1750721413803,2.046,2425.2,2424.2,0.55]
[1750721414006,10.0,2424.8,2424.2,0.55]
[1750721414171,30.0,2425.0,2424.2,0.55]
[1750721414371,10.0,2425.1,2424.1,0.14]
[1750721414577,10.0,2424.7,2424.1,0.14]
[1750721414909,10.0,2424.3,2424.1,0.14]
[1750721415115,2.27911901,2424.3,2424.1,0.14]
[1750721415308,10.0,2424.5,2424.1,0.14]
[1750721415515,30.0,2424.6,2424.1,0.14]
[1750721415516,10.0,2424.6,2424.1,0.14]
[1750721415717,10.0,2424.4,2424.1,0.14]
[1750721415916,40.0,2424.2,2424.1,0.14]
[1750721416082,10.0,2424.2,2424.1,0.14]
[1750721416282,41.0,2424.2,2424.1,0.14]
[1750721416704,41.0,2424.2,2423.1,0.14]
[1750721416705,40.0,2424.1,2423.1,2.186]
[1750721416890,10.0,2423.7,2423.1,0.14]
[1750721417098,10.0,2423.9,2423.1,0.14]
[1750721417291,10.0,2423.7,2423.1,0.14]
[1750721417508,10.0,2423.5,2423.1,0.14]
[1750721417705,12.047,2423.7,2423.1,0.14]
[1750721417908,0.49496657,2423.6,2423.1,0.14]
[1750721418088,30.0,2423.3,2423.1,0.14]
[1750721418289,0.49496657,2423.6,2423.1,0.14]
[1750721418619,10.0,2423.4,2422.2,9.263]
[1750721418912,10.0,2423.1,2422.3,0.55]
[1750721419089,10.0,2423.3,2422.2,9.263]
[1750721419417,30.0,2423.4,2422.3,0.55]
[1750721419612,10.0,2423.6,2422.3,0.55]
[1750721419782,10.0,2423.6,2422.5,0.55]
[1750721419982,2.047,2423.8,2422.7,0.55]
[1750721420184,10.0,2423.6,2422.7,0.55]
[1750721420582,10.0,2423.6,2422.9,0.55]
[1750721420801,2.047,2423.8,2423.0,0.9737]
[1750721421006,10.0,2423.8,2423.1,0.55]
[1750721421181,2.39225098,2423.8,2423.1,0.55]
[1750721421381,0.42224323,2423.9,2423.2,0.9737]
[1750721421582,12.028,2424.1,2423.2,0.9737]
[1750721421583,30.0,2424.1,2423.2,0.9737]
[1750721421782,2.028,2424.1,2423.2,0.9737]
[1750721422179,10.0,2423.9,2423.2,0.9737]
[1750721422613,4.19489481,2423.9,2423.2,0.9737]
[1750721422816,10.0,2423.9,2423.2,0.9737]
[1750721423196,30.0,2424.0,2423.2,0.9737]
[1750721423197,0.63316422,2424.1,2423.2,0.9737]
[1750721423424,10.0,2424.1,2423.2,0.9737]
[1750721423622,10.0,2423.9,2423.2,0.9737]
[1750721423826,10.0,2424.0,2423.2,0.9737]
[1750721424123,4.19489481,2424.0,2423.2,0.9737]
[1750721424322,10.0,2423.9,2423.2,0.9737]
[1750721424625,0.20254843,2424.1,2423.3,0.55]
[1750721424833,1.0,2424.2,2423.3,0.55]
[1750721425129,11.0,2424.2,2423.4,0.9737]
[1750721425487,11.20606726,2424.2,2423.4,0.9737]
[1750721425692,11.20606726,2424.2,2423.3,0.55]
[1750721425902,10.4187482,2424.2,2423.7,0.55]
[1750721426244,10.0,2424.4,2423.8,0.9737]
[1750721427222,10.20791398,2424.4,2423.8,0.9737]
[1750721427429,10.20791398,2424.4,2423.9,0.05]
[1750721428636,1.12541808,2424.4,2423.9,0.05]
[1750721428806,1.80140838,2424.3,2423.9,0.05]
[1750721429223,10.0,2424.1,2423.9,0.05]
[1750721429615,0.31534181,2424.3,2423.9,0.05]
[1750721429822,0.63045151,2424.4,2423.9,0.05]
[1750721430025,10.0,2424.3,2423.9,0.05]
[1750721430236,10.0,2424.5,2423.9,0.05]
[1750721430432,10.41010388,2424.5,2423.9,0.05]
[1750721430933,0.41010388,2424.5,2423.9,0.05]
[1750721431129,10.0,2424.3,2423.9,0.05]
[1750721431317,10.0,2424.2,2423.9,0.05]
[1750721431518,30.0,2424.5,2423.9,0.05]
[1750721431739,10.0,2424.4,2424.0,0.9711]
[1750721431939,10.49496657,2424.7,2424.0,0.9711]